fUSD/lending_fUSD_20250202
["ID","MTS","AMOUNT","RATE_DAILY","PERIOD"]
[351248628,1738476647159,-151.0,0.00016438,2]
[351248629,1738476647171,-151.0,0.00016438,2]
[351248630,1738476647181,-500.0,0.00016438,2]
[351248631,1738476647190,-151.0,0.00016438,2]
[351248632,1738476647199,-151.0,0.00016438,2]
[351248633,1738476647208,-151.0,0.00016438,2]
[351248634,1738476647217,-151.0,0.00016438,2]
[351248635,1738476647227,-151.0,0.00016438,2]
[351248636,1738476647236,-412.27986251,0.00016438,2]
[351248637,1738476647327,-87.72013749,0.00016438,2]
[351248638,1738476647337,-500.0,0.00016438,2]
[351248639,1738476647347,-500.0,0.00016438,2]
[351248640,1738476647357,-151.0,0.00016438,2]
[351248641,1738476647366,-500.0,0.00016438,2]
[351248642,1738476647375,-647.39,0.00016438,2]
[351248643,1738476647384,-500.0,0.00016438,2]
[351248644,1738476647393,-500.0,0.00016438,2]
[351248645,1738476647402,-500.0,0.00016438,2]
[351248646,1738476647411,-500.0,0.00016438,2]
[351248647,1738476647421,-500.0,0.00016438,2]
[351248648,1738476647430,-500.0,0.00016438,2]
[351248649,1738476647438,-500.0,0.00016438,2]
[351248650,1738476647447,-500.0,0.00016438,2]
[351248651,1738476647456,-500.0,0.00016438,2]
[351248652,1738476647465,-280.152361,0.00016438,2]
[351248653,1738476647473,-280.152361,0.00016438,2]
[351248654,1738476647483,-280.152361,0.00016438,2]
[351248655,1738476647491,-280.152361,0.00016438,2]
[351248656,1738476647500,-280.152361,0.00016438,2]
[351248657,1738476647510,-503.64565435,0.00016438,2]
[351248658,1738476647519,-251.57240316,0.00016438,2]
[351248669,1738476677602,153.66,0.00016658,30]
[351248670,1738476817318,223.444755,0.00023,120]
[351248671,1738477154683,226.73,0.00010137,2]
[351248674,1738477534722,332.2743431,0.0001,2]
[351248677,1738477619963,265706.19,0.00023,120]
[351248682,1738477680357,351702.54535499,0.0001,2]
[351248683,1738477680387,1208186.02447102,0.0001,2]
[351248691,1738477764813,153.66,0.00016658,30]
[351248698,1738477832156,-441.97,0.00013471,2]
[351248699,1738477832166,-2758.03000002,0.00014,2]
[351248700,1738477832267,-898.44826198,0.00014,2]
[351248701,1738477832278,-500.0,0.0001452,2]
[351248702,1738477832287,-500.0,0.0001452,2]
[351248703,1738477832297,-158.400444,0.00015101,2]
[351248704,1738477832307,-308.7,0.00015126,2]
[351248705,1738477832316,-153.9,0.00015171,2]
[351248706,1738477832326,-1430.57,0.00015184,2]
[351248707,1738477832336,-171.06,0.00015293,2]
[351248708,1738477832345,-2137.03163726,0.000153,2]
[351248709,1738477832356,-1041.76047077,0.000153,2]
[351248710,1738477832480,-4076.24789197,0.000153,2]
[351248711,1738477832490,-1000.0,0.0001533,2]
[351248712,1738477832499,-3908.0593559,0.00015357,2]
[351248713,1738477832518,-91.9406441,0.00015357,2]
[351248714,1738477832532,-407.11,0.00015386,2]
[351248715,1738477832542,-1500.0,0.00015389,2]
[351248716,1738477832552,-379.37,0.00015486,2]
[351248717,1738477832561,-373.87,0.00015486,2]
[351248718,1738477832571,-441.97,0.00015735,2]
[351248719,1738477832580,-146.16851864,0.0001589,2]
[351248721,1738477832634,-353.83148136,0.0001589,2]
[351248723,1738477832643,-1000.0,0.0001589,7]
[351248725,1738477832653,-150.0,0.00015899,2]
[351248727,1738477832663,-18827.39851865,0.000159,2]
[351248729,1738477832674,-9282.16531001,0.000159,2]
[351248731,1738477832686,-7546.18030121,0.000159,2]
[351248734,1738477832701,-786.44211909,0.000159,2]
[351248791,1738477838035,-1734.22,0.000159,2]
[351248792,1738477838271,-11257.18116383,0.000159,2]
[351248793,1738477838366,-20100.7577354,0.000159,2]
[351248794,1738477838378,-11734.61600708,0.000159,2]
[351248950,1738477840182,-44496.15585297,0.000159,2]
[351248962,1738477840286,-1864.94790699,0.000159,2]
[351248988,1738477840519,-819.9311895,0.000159,2]
[351248999,1738477840614,-1506.5,0.000159,2]
[351249001,1738477840625,-748.86806999,0.000159,2]
[351249231,1738477846311,-675.492218,0.000159,2]
[351249232,1738477846322,-301.41,0.000159,2]
[351249233,1738477846399,-1374.35860544,0.000159,2]
[351249234,1738477846411,-5251.30649639,0.000159,2]
[351249240,1738478625455,153.66,0.00016658,30]
[351249276,1738479032459,-397.77,0.00013172,2]
[351249277,1738479032469,-500.0,0.0001452,2]
[351249278,1738479032478,-500.0,0.0001452,2]
[351249279,1738479032487,-150.0,0.00014841,2]
[351249280,1738479032497,-194.35852974,0.00014867,2]
[351249281,1738479032508,-266.64147026,0.00014867,2]
[351249282,1738479032517,-32320.2559115,0.00014867,2]
[351249283,1738479032528,-190.65,0.0001499,2]
[351249284,1738479032538,-1000.0,0.0001499,2]
[351249285,1738479032547,-4000.0,0.0001509,2]
[351249286,1738479032557,-298.51,0.00015211,2]
[351249287,1738479032567,-298.51,0.000153,2]
[351249288,1738479032577,-298.24,0.000153,2]
[351249289,1738479032587,-153.9,0.00015325,2]
[351249290,1738479032595,-397.77,0.00015436,2]
[351249291,1738479032605,-152.0,0.00015709,3]
[351249292,1738479032614,-431.05149091,0.00015731,2]
[351249293,1738479032623,-1604.0,0.000158,2]
[351249294,1738479032632,-1000.0,0.0001589,7]
[351249295,1738479032642,-177.18585924,0.000159,2]
[351249296,1738479032651,-112515.53313433,0.000159,2]
[351249297,1738479032661,-45775.75213374,0.000159,2]
[351249298,1738479032730,-2400.0,0.000159,2]
[351249299,1738479032783,-1092.16188502,0.000159,2]
[351249300,1738479032809,-53254.477316,0.000159,2]
[351249301,1738479032819,-20786.25440561,0.000159,5]
[351249302,1738479032829,-1199.31284681,0.000159,2]
[351249303,1738479032839,-2196.98028,0.000159,2]
[351249304,1738479032848,-1039.0,0.000159,2]
[351249305,1738479032858,-3423.97515158,0.00016,2]
[351249306,1738479032869,-2813.51741713,0.00016,2]
[351249307,1738479032884,-713.97997548,0.00016,2]
[351249449,1738479038340,-2174.97697391,0.000159,2]
[351249450,1738479038352,-461.429366,0.000159,2]
[351249451,1738479038460,-1290984.72067431,0.000159,2]
[351249452,1738479038469,-103048.52745581,0.00016,2]
[351249453,1738479038478,-1199.31284655,0.00016003,2]
[351249454,1738479038488,-1967.72,0.00016042,2]
[351249455,1738479038497,-298.51,0.00016042,2]
[351249456,1738479038507,-298.51,0.00016042,2]
[351249457,1738479038516,-298.51,0.00016042,2]
[351249458,1738479038525,-298.51,0.00016042,2]
[351249459,1738479038535,-298.51,0.00016042,2]
[351249460,1738479038544,-596.39,0.00016042,2]
[351249461,1738479038553,-1846.65931025,0.00016096,2]
[351249462,1738479038562,-1199.31284655,0.00016107,2]
[351249463,1738479038572,-1308.5935485,0.00016109,2]
[351249464,1738479038581,-1846.65931025,0.00016137,2]
[351249465,1738479038590,-318.0,0.00016158,13]
[351249466,1738479038599,-317.71,0.00016158,2]
[351249467,1738479038608,-770.013,0.00016158,2]
[351249468,1738479038618,-568.0,0.00016158,2]
[351249469,1738479038627,-150.0,0.00016158,2]
[351249470,1738479038636,-637.0,0.00016158,2]
[351249471,1738479038646,-1867.0,0.00016158,2]
[351249472,1738479038655,-2952.0,0.00016158,2]
[351249473,1738479038665,-713.0,0.00016158,2]
[351249474,1738479038675,-538.0,0.00016158,2]
[351249475,1738479038684,-2254.656,0.00016158,2]
[351249476,1738479038694,-150.0,0.00016158,2]
[351249477,1738479038703,-1000.0,0.00016164,7]
[351249478,1738479038713,-1846.65931025,0.00016178,2]
[351249479,1738479038722,-1199.31284655,0.0001621,2]
[351249481,1738479038731,-1846.65931025,0.00016218,2]
[351249483,1738479038740,-1846.65931025,0.00016259,2]
[351249485,1738479038750,-1846.65931025,0.000163,2]
[351249487,1738479038759,-1199.31284655,0.00016314,2]
[351249489,1738479038768,-161.81730124,0.00016338,2]
[351249491,1738479038778,-150.0,0.00016365,2]
[351249493,1738479038787,-501.16645031,0.00016373,2]
[351249495,1738479038796,-500.0,0.00016373,2]
[351249497,1738479038806,-500.0,0.00016373,2]
[351249499,1738479038815,-160.65117482,0.0001639,2]
[351249501,1738479038824,-160.65117482,0.0001639,2]
[351249503,1738479038833,-160.65117482,0.0001639,2]
[351249505,1738479038842,-3570.34893598,0.00016392,10]
[351249507,1738479038852,-150.0,0.00016396,2]
[351249509,1738479038861,-500.0,0.00016399,2]
[351249511,1738479038870,-500.0,0.00016399,2]
[351249513,1738479038881,-500.0,0.00016399,2]
[351249515,1738479038890,-500.0,0.00016399,2]
[351249517,1738479038901,-500.0,0.00016399,2]
[351249519,1738479038910,-500.0,0.00016399,2]
[351249521,1738479038920,-500.0,0.00016399,2]
[351249523,1738479038930,-500.0,0.00016399,2]
[351249525,1738479038940,-500.0,0.00016399,2]
[351249527,1738479038950,-500.0,0.00016399,2]
[351249529,1738479038960,-500.0,0.00016399,2]
[351249531,1738479038969,-500.0,0.00016399,2]
[351249533,1738479038979,-500.0,0.00016399,2]
[351249535,1738479038988,-500.0,0.00016399,2]
[351249537,1738479038997,-500.0,0.00016399,2]
[351249539,1738479039006,-500.0,0.00016399,2]
[351249541,1738479039015,-500.0,0.00016399,2]
[351249543,1738479039024,-500.0,0.00016399,2]
[351249545,1738479039033,-500.0,0.00016399,2]
[351249547,1738479039042,-500.0,0.00016399,2]
[351249549,1738479039051,-500.0,0.00016399,2]
[351249550,1738479039060,-500.0,0.00016399,2]
[351249552,1738479039068,-500.0,0.00016399,2]
[351249554,1738479039077,-500.0,0.00016399,2]
[351249556,1738479039085,-500.0,0.00016399,2]
[351249558,1738479039094,-500.0,0.00016399,2]
[351249560,1738479039103,-500.0,0.00016399,2]
[351249562,1738479039112,-500.0,0.00016399,2]
[351249564,1738479039121,-500.0,0.00016399,2]
[351249566,1738479039130,-500.0,0.00016399,2]
[351249568,1738479039140,-500.0,0.00016399,2]
[351249571,1738479039149,-500.0,0.00016399,2]
[351249572,1738479039158,-500.0,0.00016399,2]
[351249574,1738479039167,-430.46013641,0.00016399,2]
[351249576,1738479039176,-500.0,0.00016399,2]
[351249577,1738479039184,-500.0,0.00016399,2]
[351249578,1738479039193,-500.0,0.00016399,2]
[351249579,1738479039202,-500.0,0.00016399,2]
[351249580,1738479039211,-500.0,0.00016399,2]
[351249581,1738479039219,-500.0,0.00016399,2]
[351249582,1738479039228,-650.0,0.00016399,2]
[351249583,1738479039237,-500.0,0.00016399,2]
[351249584,1738479039246,-500.0,0.00016399,2]
[351249585,1738479039254,-500.0,0.00016399,2]
[351249586,1738479039263,-500.0,0.00016399,2]
[351249588,1738479039271,-500.0,0.00016399,2]
[351249590,1738479039280,-500.0,0.00016399,2]
[351249592,1738479039289,-500.0,0.00016399,2]
[351249593,1738479039298,-500.0,0.00016399,2]
[351249595,1738479039307,-300.0,0.00016399,2]
[351249597,1738479039317,-4952.21468641,0.000164,2]
[351249599,1738479039326,-30000.0,0.000164,3]
[351249601,1738479039335,-1719595.22254492,0.000164,2]
[351249603,1738479039344,-430088.22249423,0.000164,2]
[351249605,1738479039353,-432803.69248806,0.000164,2]
[351249607,1738479039362,-996729.31220655,0.000164,2]
[351249610,1738479039375,-4961.71178888,0.000164,2]
[351249613,1738479039391,-471.38721581,0.000164,2]
[351249615,1738479039402,-589.16563598,0.000164,2]
[351249617,1738479039413,-11204.48737921,0.000164,2]
[351249742,1738479040579,-17199.12219595,0.000164,2]
[351249746,1738479040606,-31108.14011657,0.000164,2]
[351249749,1738479040626,-6155.53103416,0.000164,2]
[351249760,1738479040718,-4180.0,0.000164,2]
[351249776,1738479040901,-292.560002,0.000164,2]
[351249806,1738479043439,-59529.37038728,0.000164,2]
[351249807,1738479043483,-498.07479799,0.000164,2]
[351249808,1738479043496,-466.1361164,0.000164,2]
[351249809,1738479043508,-367.145,0.000164,2]
[351249810,1738479043523,-304.31,0.000164,2]
[351249811,1738479043534,-384.51000004,0.000164,2]
[351249812,1738479043545,-8120.18752707,0.000164,2]
[351249815,1738479046543,-439.04146192,0.000163,2]
[351249816,1738479046554,-92936.95853808,0.000164,2]
[351249817,1738479046566,-6300.10735128,0.000164,2]
[351249818,1738479046578,-102629.42921061,0.000164,2]
[351249819,1738479046691,-491.805,0.000163,2]
[351249822,1738479046703,-900.84860598,0.000163,2]
[351249866,1738479189813,170.59,0.00010137,2]
[351249873,1738480029676,215.39,0.00010137,2]
[351249901,1738480231837,-357.99,0.00013453,2]
[351249902,1738480231849,-2000.0,0.000137,5]
[351249903,1738480231860,-500.0,0.00014105,2]
[351249904,1738480231871,-500.0,0.00014105,2]
[351249905,1738480231881,-500.0,0.00014105,2]
[351249906,1738480231891,-297.27083853,0.00014105,2]
[351249907,1738480231900,-1267.73916145,0.000152,2]
[351249908,1738480231912,-523.26083855,0.000152,2]
[351249909,1738480231922,-1615.97396367,0.00015326,2]
[351249910,1738480231934,-550.99707701,0.00015326,2]
[351249911,1738480231946,-21723.02895932,0.00015326,2]
[351249912,1738480231956,-414.66,0.00015374,2]
[351249913,1738480231966,-1000.0,0.00015381,2]
[351249914,1738480231976,-4000.0,0.00015395,2]
[351249915,1738480231986,-150.0,0.00015516,2]
[351249916,1738480231996,-357.99,0.00015717,2]
[351249917,1738480232005,-1000.0,0.0001589,7]
[351249918,1738480232015,-135.57483529,0.00016109,2]
[351249919,1738480232046,-518.72193901,0.00016109,2]
[351249920,1738480232056,-1000.0,0.00016164,7]
[351249921,1738480232065,-1830.8169,0.0001624,2]
[351249922,1738480232075,-368.14,0.000163,2]
[351249923,1738480232084,-63304.24926037,0.000163,2]
[351249924,1738480232096,-2014.85,0.000163,2]
[351249925,1738480232108,-551.85518725,0.000163,2]
[351249926,1738480232149,-3450.0,0.000163,2]
[351249931,1738480237529,-460.00000003,0.000163,2]
[351249932,1738480237541,-7015.94967,0.000163,2]
[351249933,1738480237553,-1997.76,0.000163,2]
[351249934,1738480237605,-502.21648287,0.000163,2]
[351249935,1738480237804,-20115.38308285,0.000163,2]
[351249936,1738480237816,-273.50760045,0.000163,2]
[351249937,1738480237828,-1295.03044467,0.000163,2]
[351250091,1738480239981,-4271.50150775,0.000163,2]
[351250093,1738480239992,-862.7749996,0.000163,2]
[351250095,1738480240004,-404.39144206,0.000163,2]
[351250317,1738480242546,-420.95341035,0.000163,2]
[351250325,1738480242594,-1978.68409004,0.000163,2]
[351250327,1738480242647,-2000.0,0.000163,2]
[351250328,1738480242692,-387.09001,0.000163,2]
[351250329,1738480242703,-324.9600011,0.000163,2]
[351250330,1738480242714,-313.2429339,0.000163,2]
[351250331,1738480242739,-13444.95171527,0.000163,2]
[351250332,1738480242749,-1300.101,0.000163,2]
[351250333,1738480242759,-1070.49870742,0.000163,2]
[351250334,1738480242770,-11507.52881042,0.000163,2]
[351250335,1738480242791,-10260.0,0.000163,2]
[351250428,1738480245579,-356.79000028,0.000163,2]
[351250429,1738480245591,-327.4996645,0.000163,2]
[351250430,1738480245644,-6006.19641439,0.000163,2]
[351250431,1738480245714,-309.7224929,0.000163,2]
[351250432,1738480245725,-2840.539929,0.000163,2]
[351250433,1738480245905,-374.55,0.000163,2]
[351250434,1738480245916,-10948.5134584,0.000163,2]
[351250435,1738480245927,-3015.1347092,0.000163,2]
[351250477,1738480497399,153.73,0.00016658,30]
[351250485,1738481108851,132784.61,0.00012,2]
[351250486,1738481108878,580661.96521526,0.00012,2]
[351250492,1738481282607,396474.69831245,0.0001,2]
[351250494,1738481325619,168.42,0.00011807,2]
[351250507,1738481432019,-350.29,0.00013065,2]
[351250508,1738481432028,-500.0,0.00013663,2]
[351250509,1738481432037,-230.42281142,0.00013663,2]
[351250510,1738481432050,-224.10085942,0.00013663,2]
[351250511,1738481432059,-250.0,0.00014754,2]
[351250512,1738481432068,-739.25,0.00014767,7]
[351250513,1738481432078,-739.25,0.00014767,7]
[351250514,1738481432087,-739.25,0.00014767,7]
[351250515,1738481432097,-106.61379555,0.00014767,7]
[351250516,1738481432118,-632.63620445,0.00014767,7]
[351250517,1738481432128,-367.86379555,0.00014767,2]
[351250518,1738481432139,-476.47053834,0.00014767,2]
[351250519,1738481432150,-6944.62146245,0.00014767,2]
[351250520,1738481432159,-23299.82866103,0.00014772,2]
[351250522,1738481432248,-600.17133897,0.00014772,2]
[351250524,1738481432258,-249.77,0.00014775,2]
[351250526,1738481432267,-1500.0,0.00014782,2]
[351250527,1738481432276,-186.06,0.0001482,2]
[351250529,1738481432286,-739.25,0.00015041,7]
[351250530,1738481432295,-739.25,0.00015041,7]
[351250531,1738481432306,-739.25,0.00015315,7]
[351250532,1738481432315,-532.44865954,0.00015315,7]
[351250533,1738481432357,-206.80134046,0.00015315,7]
[351250534,1738481432366,-350.29,0.00015329,2]
[351250535,1738481432375,-1000.0,0.00015336,2]
[351250536,1738481432385,-1553.60865948,0.00015358,2]
[351250537,1738481432397,-728.74036708,0.00015358,2]
[351251034,1738481437798,-282.31003672,0.00015358,2]
[351251036,1738481437810,-679.1989902,0.00015358,2]
[351251038,1738481437821,-455.79504925,0.00015358,2]
[351251040,1738481437832,-300.34689727,0.00015358,2]
[351251042,1738481437842,-161.25,0.00015408,2]
[351251044,1738481437851,-7226.0,0.000155,2]
[351251046,1738481437861,-739.25,0.00015589,7]
[351251048,1738481437871,-739.25,0.00015589,7]
[351251050,1738481437879,-739.25,0.00015863,7]
[351251052,1738481437889,-739.25,0.00015863,7]
[351251054,1738481437898,-1000.0,0.0001589,7]
[351251056,1738481437907,-496.9786,0.000159,2]
[351251058,1738481437916,-999.42737227,0.000159,2]
[351251060,1738481437926,-738.66372411,0.000159,2]
[351251062,1738481437935,-738.6637241,0.000159,2]
[351251064,1738481437944,-738.6637241,0.00015901,2]
[351251066,1738481437953,-738.6637241,0.00015901,2]
[351251068,1738481437962,-24654.78623405,0.00015904,2]
[351251070,1738481437974,-8355.461751,0.00015904,2]
[351251072,1738481437985,-2559.72190807,0.00015904,2]
[351251074,1738481437994,-192.9927765,0.00015904,2]
[351251076,1738481438004,-11946.02521192,0.00015904,2]
[351251078,1738481438013,-200.0,0.00015909,2]
[351251081,1738481438023,-200.0,0.00015959,2]
[351251083,1738481438033,-200.0,0.00015961,2]
[351251085,1738481438042,-500.0,0.00015973,2]
[351251086,1738481438054,-152.3032782,0.00015973,2]
[351251089,1738481438063,-167.0291237,0.00015973,2]
[351251091,1738481438073,-500.56523456,0.00015973,2]
[351251092,1738481438082,-500.18537111,0.00015973,2]
[351251094,1738481438091,-439.71,0.00015982,2]
[351251096,1738481438100,-439.71,0.00015982,2]
[351251098,1738481438109,-500.0,0.00015991,2]
[351251100,1738481438118,-208.04601364,0.00015991,2]
[351251102,1738481438127,-500.0,0.00015991,2]
[351251104,1738481438136,-500.0,0.00015991,2]
[351251106,1738481438146,-500.0,0.00015991,2]
[351251108,1738481438155,-500.0,0.00015991,2]
[351251110,1738481438164,-15274.02047926,0.00015992,2]
[351251117,1738481438218,-11871.99732108,0.00015992,2]
[351251122,1738481438260,-2014.65399562,0.00015992,2]
[351251124,1738481438271,-1163.10000005,0.00015992,2]
[351251127,1738481438282,-441.93,0.00015992,2]
[351251309,1738481440071,-395.98084323,0.00015902,2]
[351251312,1738481440082,-342.68288087,0.00015902,2]
[351251314,1738481440091,-9957.34990166,0.00015992,2]
[351251316,1738481440102,-268.09228755,0.00015992,2]
[351251318,1738481440116,-516.18424166,0.00015992,2]
[351251324,1738481440160,-562.4298594,0.00015992,2]
[351251326,1738481440171,-3042.4579206,0.00015992,2]
[351251353,1738481440414,-4002.0,0.00015992,2]
[351251610,1738481442921,-393.29595266,0.00015992,2]
[351251612,1738481442937,-300.299957,0.00015992,2]
[351251617,1738481442967,-3009.006,0.00015992,2]
[351251904,1738481445702,-738.6637241,0.00015902,2]
[351251906,1738481445711,-1829.71336722,0.00015992,2]
[351251907,1738481445723,-3170.0,0.00015992,2]
[351251940,1738481446044,-102629.42921061,0.00015992,2]
[351252854,1738481556265,302.0,0.00023,120]
[351252856,1738481942523,172.44,0.00010137,2]
[351252859,1738482232361,168.19,0.00011963,2]
[351252860,1738482377375,200.0,0.00011903,2]
[351252868,1738482631992,-375.29,0.00012995,2]
[351252869,1738482632002,-152.54054012,0.00013563,2]
[351252870,1738482632011,-500.0,0.00013663,2]
[351252871,1738482632021,-2751.0,0.00014935,2]
[351252872,1738482632031,-1000.0,0.00014939,2]
[351252873,1738482632041,-249.77,0.00014954,2]
[351252874,1738482632051,-331.72,0.0001497,2]
[351252875,1738482632061,-375.29,0.00015259,2]
[351252876,1738482632070,-376.66,0.00015299,2]
[351252877,1738482632079,-379.98,0.00015299,2]
[351252878,1738482632088,-4000.0,0.00015299,2]
[351252879,1738482632098,-447.5108,0.00015804,2]
[351252880,1738482632107,-1000.0,0.0001589,7]
[351252881,1738482632117,-5828.6778,0.00015892,2]
[351252882,1738482632129,-202.1318935,0.00015892,2]
[351252883,1738482632138,-150.0,0.00015899,2]
[351252884,1738482632147,-41624.1671,0.000159,2]
[351252885,1738482632156,-966.11312646,0.000159,2]
[351252886,1738482632167,-1897.8061804,0.000159,2]
[351252887,1738482632177,-1510.42,0.000159,2]
[351252888,1738482632187,-1897.80618036,0.000159,2]
[351252889,1738482632197,-1897.80618036,0.00015901,2]
[351252890,1738482632207,-1897.80618036,0.00015901,2]
[351252891,1738482632216,-1897.80618036,0.00015902,2]
[351252892,1738482632421,-1897.80618036,0.00015902,2]
[351252893,1738482632433,-1897.80618036,0.00015903,2]
[351252894,1738482632442,-1897.80618036,0.00015903,2]
[351252895,1738482632451,-1897.80618036,0.00015904,2]
[351252896,1738482632461,-161.81730121,0.00015904,2]
[351252897,1738482632470,-1897.80618036,0.00015904,2]
[351252898,1738482632479,-292.69430794,0.00015904,2]
[351252899,1738482632489,-7964.01680796,0.00015904,2]
[351252900,1738482632498,-2000.0,0.0001599,2]
[351252901,1738482632507,-2000.0,0.0001599,2]
[351252903,1738482632517,-163780.84145797,0.00015992,2]
[351252905,1738482632530,-158023.34408081,0.00015992,2]
[351252907,1738482632542,-14888.40650791,0.00015992,2]
[351252909,1738482632588,-975.803125,0.00015992,2]
[351252911,1738482632599,-20721.09618522,0.00015992,2]
[351252912,1738482632610,-19962.75710781,0.00015992,2]
[351252913,1738482632621,-3088.00000005,0.00015992,2]
[351252915,1738482632632,-3655.80201086,0.00015992,2]
[351252916,1738482632654,-63331.95138979,0.00015992,2]
[351252917,1738482632686,-254.99062844,0.00015992,2]
[351252918,1738482632697,-3172.50000046,0.00015992,2]
[351252925,1738482632802,-2069.28728858,0.00015992,2]
[351252927,1738482637844,-713.48901349,0.00014939,2]
[351252928,1738482637854,-739.6396624,0.00014939,2]
[351252929,1738482637863,-300.89400152,0.00015991,2]
[351252930,1738482637871,-249.56633648,0.00015992,2]
[351252931,1738482637880,-1932.30007238,0.00015992,2]
[351252932,1738482637890,-281.58381922,0.00015992,2]
[351252933,1738482637900,-2789.41,0.00015992,2]
[351252934,1738482637926,-32666.97654097,0.00015992,2]
[351252935,1738482637938,-166971.64212884,0.00015992,2]
[351252936,1738482637947,-2242.3112523,0.00015992,2]
[351252937,1738482637956,-4050229.18912175,0.00015992,2]
[351252938,1738482638163,-5859.45755793,0.00015992,2]
[351252939,1738482638176,-397201.99999994,0.00015992,2]
[351252940,1738482638187,-1303.87490772,0.00015992,2]
[351252941,1738482638199,-5223.74260702,0.00015992,2]
[351252942,1738482638221,-9564.14507493,0.00015992,2]
[351252943,1738482638237,-10276.64143365,0.00015992,2]
[351252944,1738482638255,-3381.9583645,0.00015992,2]
[351253133,1738482640060,-26197.489029,0.00015992,2]
[351253141,1738482640143,-573.619998,0.00015992,2]
[351253149,1738482640217,-118354.87695215,0.00015992,2]
[351253151,1738482640228,-154742.06288757,0.00015992,2]
[351253153,1738482640240,-1259.73442,0.00015992,2]
[351253156,1738482640292,-5896.90035847,0.00015992,2]
[351253167,1738482640473,-705.20017422,0.00015992,2]
[351253169,1738482640484,-394.04068009,0.00015992,2]
[351253441,1738482643063,-2127.5000002,0.00015992,2]
[351253459,1738482643235,-336.621,0.00015992,2]
[351253461,1738482643247,-11587.0,0.00015992,2]
[351253732,1738482645970,-22587.73708694,0.00015992,2]
[351253740,1738482646036,-423.9,0.00015992,2]
[351253742,1738482646046,-876.7624557,0.00015992,2]
[351253745,1738482646058,-1686.74817616,0.00015992,2]
[351253749,1738482646094,-7151.25,0.00015992,2]
[351253752,1738482646105,-1378.91798802,0.00015992,2]
[351253754,1738482646116,-41762.05246921,0.00015992,2]
[351253759,1738482646155,-99000.0,0.00015992,2]
[351253803,1738483231760,150.0,0.00022028,120]
[351253941,1738483245148,872.05601387,0.00023,120]
[351253942,1738483292338,150.0,0.00022061,120]
[351253943,1738483342775,168.19,0.00011731,2]
[351253944,1738483350918,150.0,0.00020972,120]
[351253946,1738483410734,150.0,0.00021719,120]
[351253947,1738483467294,204.62,0.00010137,2]
[351253993,1738483832014,-392.76,0.00012874,2]
[351253994,1738483832023,-500.0,0.00013663,2]
[351253995,1738483832032,-170.42,0.00014579,2]
[351253996,1738483832042,-435.60949728,0.00014649,2]
[351253997,1738483832053,-1182.71091713,0.00014649,2]
[351253998,1738483832066,-8960.2035753,0.00014649,2]
[351253999,1738483832105,-1174.53947186,0.00014649,2]
[351254000,1738483832116,-254.37134798,0.00014649,2]
[351254001,1738483832127,-5191.200334,0.00014649,2]
[351254002,1738483832138,-6681.36485645,0.00014649,2]
[351254003,1738483832149,-669.47883399,0.00014679,2]
[351254004,1738483832158,-764.391816,0.00014679,2]
[351254005,1738483832167,-61.11449356,0.00014681,2]
[351254006,1738483832178,-5344.48550644,0.00014681,2]
[351254007,1738483832187,-160.9,0.0001478,2]
[351254008,1738483832196,-1000.0,0.00014824,2]
[351254009,1738483832205,-1500.0,0.00014856,2]
[351254010,1738483832214,-282.6,0.00014942,2]
[351254011,1738483832223,-161.87556184,0.00014964,2]
[351254012,1738483832234,-208.24443816,0.00014964,2]
[351254013,1738483832243,-250.0,0.00014982,2]
[351254014,1738483832251,-392.76,0.00015138,2]